bitfinex/quotes_ETHUSD_20260306
["timestamp","ask_amount","ask_price","bid_price","bid_amount"]
[1772814483434,1.26639987,1974.1,1973.6,0.0011]
[1772814483737,1.26652819,1973.9,1973.6,0.0011]
[1772814484640,2.36051603,1974.0,1973.6,0.0011]
[1772814485211,2.3604677,1974.0,1973.6,0.0011]
[1772814485458,1.2664677,1974.0,1973.6,0.0011]
[1772814485665,1.095,1974.1,1973.6,1.26782071]
[1772814485867,1.095,1974.1,1973.7,0.4724994]
[1772814486353,0.46995018,1974.5,1973.7,0.4724994]
[1772814486529,1.093,1974.6,1973.7,0.4724994]
[1772814486731,1.09,1974.6,1973.7,0.4724994]
[1772814486930,5.06388503,1974.9,1973.7,0.4724994]
[1772814486931,5.06348448,1975.0,1973.7,0.4724994]
[1772814487251,1.2657901,1975.1,1973.7,0.4724994]
[1772814487461,0.001,1975.3,1973.9,0.4724994]
[1772814487667,1.26575869,1975.1,1974.1,0.4724994]
[1772814487825,2.35673373,1975.2,1974.1,0.4724994]
[1772814488025,2.35673373,1975.2,1974.0,1.26646403]
[1772814488026,0.46995018,1975.1,1974.0,1.26646403]
[1772814488547,0.46995018,1975.1,1974.0,1.73896343]
[1772814490028,2.35782278,1975.0,1974.1,0.4724994]
[1772814490228,5.0629268,1975.2,1974.1,0.4724994]
[1772814490229,5.06303478,1975.2,1974.1,0.4724994]
[1772814490428,1.092,1975.1,1974.1,0.4724994]
[1772814490626,1.56195018,1975.1,1974.1,0.4724994]
[1772814490954,0.46995018,1975.0,1973.7,0.4724994]
[1772814491460,0.46995018,1974.7,1973.6,0.0011]
[1772814491958,0.46995018,1974.2,1973.6,0.0011]
[1772814492164,1.093,1974.1,1973.6,0.0011]
[1772814493747,0.46995018,1974.2,1973.6,0.0011]
[1772814493950,1.26639987,1974.1,1973.6,0.0011]
[1772814494126,2.36039987,1974.1,1973.6,0.0011]
[1772814494547,1.094,1974.0,1973.6,0.0011]
[1772814495653,1.095,1974.0,1973.6,0.0011]
[1772814496034,1.26652819,1973.9,1973.6,0.0011]
[1772814496553,6.16089238,1974.0,1973.6,0.0011]
[1772814496554,0.001,1974.0,1973.6,0.0011]
[1772814497143,1.095,1974.6,1973.6,0.4735994]
[1772814497338,5.53401054,1974.9,1973.6,0.4735994]
[1772814497561,1.095,1974.8,1973.6,0.4735994]
[1772814498046,0.46995018,1974.7,1973.6,0.4735994]
[1772814498236,1.26601509,1974.7,1973.8,0.4724994]
[1772814500762,1.73596527,1974.7,1973.8,0.4724994]
[1772814501061,0.46995018,1974.6,1973.6,1.26777012]
[1772814501435,0.46995018,1974.6,1973.6,0.4735994]
[1772814501737,0.46995018,1974.6,1973.6,0.0011]
[1772814501937,0.46995018,1974.6,1973.6,1.26781798]
[1772814502657,1.7360935,1974.5,1973.6,0.0011]
[1772814502862,0.46995018,1974.4,1973.6,0.0011]
[1772814503564,1.097,1974.3,1973.6,0.0011]
[1772814503951,0.46995018,1974.2,1973.6,0.0011]
[1772814504244,1.26614332,1974.5,1973.6,0.0011]
[1772814504245,1.7360935,1974.5,1973.6,0.0011]
[1772814504434,1.7360935,1974.5,1973.6,0.4735994]
[1772814504435,1.26614332,1974.5,1973.6,0.4735994]
[1772814504638,2.36314332,1974.5,1973.6,0.4735994]
[1772814504840,2.36314332,1974.5,1973.7,1.73915593]
[1772814505148,2.36314332,1974.5,1973.6,0.0011]
[1772814505149,0.46995018,1974.4,1973.6,0.0011]
[1772814505333,0.46995018,1974.4,1973.6,1.26779834]
[1772814507075,0.46995018,1974.2,1973.6,0.0011]
[1772814508241,0.46995018,1974.2,1973.7,0.0011]
[1772814508533,0.001,1974.1,1973.7,0.0011]
[1772814509062,0.47095018,1974.1,1973.7,0.0011]
[1772814509364,0.46995018,1974.0,1973.7,0.0011]
[1772814509566,2.36545182,1974.1,1973.7,0.0011]
[1772814509764,0.001,1974.1,1973.7,0.0011]
[1772814510456,5.53464989,1974.5,1973.7,0.0011]
[1772814510663,0.46995018,1974.4,1973.7,0.0011]
[1772814511349,0.46995018,1974.2,1973.7,0.0011]
[1772814511550,0.46995018,1974.0,1973.7,0.0011]
[1772814514558,0.46103428,1973.8,1972.9,1.26714374]
[1772814514965,0.46103428,1973.8,1972.9,1.36447647]
[1772814515871,0.46103428,1974.1,1973.0,0.09733123]
[1772814516284,1.72743474,1974.1,1973.0,0.09733123]
[1772814516579,1.26652819,1973.9,1973.1,1.26704171]
[1772814516776,1.72756247,1973.9,1973.1,1.26704171]
[1772814517376,0.46103428,1973.9,1973.1,1.26704171]
[1772814518654,1.26639987,1974.1,1973.1,1.36436855]
[1772814518958,1.72743415,1974.1,1973.1,1.36436855]
[1772814519158,0.46103428,1974.0,1973.1,1.36436855]
[1772814519562,0.46103428,1974.0,1973.1,1.26704171]
[1772814520396,0.001,1973.9,1973.1,1.26704171]
[1772814520692,1.26752819,1973.9,1973.1,1.3643657]
[1772814520993,0.001,1973.9,1973.1,1.26704171]
[1772814521200,0.001,1973.9,1973.2,0.09732399]
[1772814522399,1.72724173,1974.4,1973.4,0.0963226]
[1772814522768,1.72724173,1974.4,1973.6,0.09632122]
[1772814522769,0.46103428,1974.4,1973.6,0.09632122]
[1772814522976,1.72725049,1974.4,1973.6,0.09632122]
[1772814523600,0.46103429,1974.4,1973.6,0.09632122]
[1772814523981,1.72707403,1974.7,1973.6,0.09632122]
[1772814524178,0.46103428,1975.0,1973.9,0.49932975]
[1772814524380,1.26574538,1975.2,1974.0,0.49932975]
[1772814524982,0.29412349,1975.1,1974.1,1.76572962]
[1772814525186,0.75515777,1975.1,1974.2,0.49932975]
[1772814526702,0.46103428,1975.0,1974.1,1.26639987]
[1772814527077,0.46103428,1975.0,1974.0,5.06559951]
[1772814527282,0.46103428,1974.8,1974.0,5.06559951]
[1772814528311,0.46103428,1974.8,1973.9,0.49932975]
[1772814528614,0.46103428,1974.8,1973.5,0.49932975]
[1772814528810,0.46103428,1974.7,1973.5,0.49932975]
[1772814529106,1.2660792,1974.6,1973.6,1.26672071]
[1772814529406,0.46103428,1974.5,1973.6,1.26672071]
[1772814530311,0.29412349,1974.6,1973.7,0.44853194]
[1772814531201,1.095,1974.9,1974.0,1.71499471]
[1772814531406,1.72679854,1975.1,1974.1,0.44853068]
[1772814531903,1.72679773,1975.1,1974.1,0.44853068]
[1772814532409,0.001,1974.9,1974.1,0.44853068]
[1772814533523,0.001,1974.9,1974.2,1.26633573]
[1772814533699,0.001,1974.9,1974.2,1.71486272]
[1772814533896,0.001,1974.9,1974.3,0.44852699]
[1772814534716,0.001,1974.9,1974.3,1.29852699]
[1772814536058,0.001,1974.9,1974.4,1.26620745]
[1772814536735,0.001,1974.9,1974.4,1.71472972]
[1772814536911,1.72664263,1975.4,1974.5,0.44852227]
[1772814537537,0.45502483,1975.3,1974.5,0.44852227]
[1772814537709,0.45502483,1975.3,1974.4,1.26620745]
[1772814537913,0.45502483,1975.3,1974.4,2.11720745]
[1772814539255,1.26569461,1975.2,1974.4,2.11720745]
[1772814539845,1.72071944,1975.2,1974.4,2.11720745]
[1772814541347,1.26562123,1975.4,1974.5,0.44751775]
[1772814541551,0.45502483,1975.3,1974.5,0.44751775]
[1772814542753,0.45502483,1975.3,1974.4,2.11720745]
[1772814542956,0.45502483,1975.3,1974.4,1.26620745]
[1772814543126,0.45502483,1975.3,1974.4,2.11820745]
[1772814543949,0.48846749,1975.2,1974.4,2.11820745]
[1772814544162,0.48846749,1975.4,1974.5,0.44751344]
[1772814544463,0.48846749,1975.4,1974.4,2.11920745]
[1772814544828,0.48846749,1975.1,1974.4,2.11920745]
[1772814545359,0.48846749,1975.1,1974.4,1.26620745]
[1772814546046,0.48846749,1975.1,1974.3,5.06482982]
[1772814546047,1.75429027,1975.0,1974.3,5.06482982]
[1772814547460,0.48846749,1974.9,1974.3,5.06482982]
[1772814547634,0.48846749,1974.9,1974.3,1.26627158]
[1772814548161,1.75439646,1974.9,1974.2,5.0663195]
[1772814548663,0.48846749,1974.8,1974.2,5.0663195]
[1772814549362,0.48846749,1975.1,1974.2,5.51382783]
[1772814550336,1.7542629,1975.1,1974.3,0.44750734]
[1772814550960,0.48846749,1975.1,1974.3,0.44750734]
[1772814551142,1.7542362,1975.1,1974.3,0.44750734]
[1772814551345,0.48846749,1975.1,1974.3,0.44750734]
[1772814551542,1.7542311,1975.1,1974.3,0.44750734]
[1772814551745,0.48846749,1975.0,1974.2,5.0663195]
[1772814552063,0.48846749,1975.0,1974.3,0.856]
[1772814552459,0.001,1975.2,1974.4,1.71371285]
[1772814553436,0.48946749,1975.2,1974.4,1.71371285]
[1772814553953,0.48946749,1975.2,1974.4,1.26620745]
[1772814554531,1.26575869,1975.1,1974.4,1.71371002]
[1772814554736,0.48846749,1975.1,1974.4,1.71371002]
[1772814555935,0.001,1975.2,1974.5,0.44750165]
[1772814556539,0.001,1975.2,1974.6,1.2660792]
[1772814556860,0.48846749,1975.7,1974.7,0.44750073]
[1772814557045,0.48846749,1975.7,1974.8,1.30550073]
[1772814557046,0.48846749,1975.6,1974.8,1.30550073]
[1772814557464,1.75375982,1975.9,1974.9,0.44750073]
[1772814557676,1.75375982,1975.9,1974.8,1.30549983]
[1772814557677,0.48846749,1975.8,1974.8,1.30549983]
[1772814557879,0.48846749,1975.8,1974.9,0.44749983]
[1772814558540,0.48846749,1975.8,1974.6,1.71357814]
[1772814558740,0.48846749,1975.6,1974.6,2.57267814]
[1772814558975,0.48846749,1975.6,1974.6,1.2671792]
[1772814559159,0.48946749,1975.6,1974.6,1.2671792]
[1772814559952,0.48946749,1975.6,1974.6,1.71467726]
[1772814560156,0.48946749,1975.6,1974.6,1.2671792]
[1772814560769,0.48846749,1975.4,1974.6,0.0011]
[1772814563645,0.48846749,1975.2,1974.6,0.0011]
[1772814566150,0.48846749,1975.1,1974.6,0.0011]
[1772814566980,1.26569731,1975.2,1974.6,0.0011]
[1772814567187,1.75409802,1975.3,1974.6,0.0011]
[1772814567348,0.48846749,1975.2,1974.6,0.0011]
[1772814568321,0.48846749,1975.1,1974.6,0.0011]
[1772814570311,1.75423075,1975.1,1974.6,0.0011]
[1772814571904,0.48846749,1975.1,1974.6,0.0011]
[1772814572211,0.49484663,1975.5,1974.8,0.49115034]
[1772814572380,1.26644247,1975.6,1974.8,0.49115034]
[1772814572779,0.001,1975.6,1974.8,0.49115034]
[1772814573019,1.26644813,1975.6,1974.8,0.49115034]
[1772814573219,0.001,1975.6,1974.8,0.49115034]
[1772814573927,0.001,1975.6,1975.0,0.49115034]
[1772814574316,0.001,1975.6,1975.1,1.26575869]
[1772814574608,0.49584663,1975.6,1975.1,1.26575869]
[1772814575276,0.49584663,1975.6,1974.6,11.50529496]
[1772814575476,0.49584663,1975.6,1974.6,1.2671792]
[1772814576604,0.49484663,1975.4,1974.6,1.2671792]
[1772814577807,0.49484663,1975.3,1974.6,1.2671792]
[1772814579206,1.76054124,1975.2,1974.6,1.2671792]
[1772814579410,1.088,1975.4,1974.7,0.49115034]
[1772814579709,2.35357918,1975.4,1974.7,0.49115034]
[1772814580510,2.3535781,1975.4,1974.7,0.49115034]
[1772814580816,2.35357134,1975.4,1974.7,0.49115034]
[1772814581617,1.088,1975.4,1974.8,1.26595098]
[1772814581995,1.088,1975.4,1974.9,0.49115034]
[1772814582184,1.26647663,1975.6,1974.9,0.49115034]
[1772814582614,1.76132326,1975.6,1974.9,0.49115034]
[1772814583212,0.49484663,1975.5,1974.7,1.26599279]
[1772814583924,1.26556646,1975.4,1974.6,5.06538473]
[1772814584216,0.49484663,1975.4,1974.7,0.49115034]
[1772814584422,1.26554537,1975.5,1974.7,0.49115034]
[1772814584797,1.26643901,1975.6,1974.7,0.49225034]
[1772814584999,1.26644403,1975.6,1974.7,0.49225034]
[1772814586102,0.49484663,1975.5,1974.8,1.26595098]
[1772814586420,0.49484663,1975.5,1974.8,1.75710132]
[1772814587992,0.49484663,1975.5,1974.9,0.49115034]
[1772814588716,1.76038663,1975.5,1975.0,1.26582278]
[1772814589415,1.26647059,1975.6,1975.0,1.26582278]
[1772814589591,1.26647059,1975.6,1975.0,1.75697312]
[1772814590520,0.49484663,1975.5,1975.0,1.26582278]
[1772814591324,0.49484663,1975.5,1974.9,5.55444326]
[1772814591819,1.7603504,1975.5,1974.9,5.55444326]
[1772814592024,1.7603504,1975.5,1974.7,0.0011]
[1772814592025,0.49484663,1975.4,1974.7,0.0011]
[1772814592213,0.49484663,1975.4,1974.7,1.26710705]
[1772814592521,0.49484663,1975.4,1974.7,1.26711276]
[1772814593421,1.76047716,1975.3,1974.7,0.0011]
[1772814594598,0.49484663,1975.2,1974.7,0.0011]
[1772814594907,0.49484663,1975.2,1974.6,0.0011]
[1772814595313,1.26575869,1975.1,1974.6,0.0011]
[1772814595521,0.45224334,1975.0,1974.6,0.0011]
[1772814597634,1.71807657,1975.0,1974.6,0.0011]
[1772814598229,1.71807657,1975.0,1974.8,0.0011]
[1772814599029,0.45224334,1974.9,1974.8,0.0011]
[1772814599347,0.45224334,1974.9,1974.2,5.06626653]
[1772814599348,0.45224334,1974.9,1974.2,1.26739923]
[1772814599543,1.26595098,1974.8,1974.2,0.47952045]
[1772814599835,1.71813838,1974.9,1974.2,0.47952045]
[1772814600004,0.45224334,1974.9,1974.2,0.47952045]
[1772814600328,0.45224334,1975.1,1974.2,0.47952045]
[1772814601513,0.45224334,1974.9,1974.2,0.0011]
[1772814601731,1.093,1974.8,1974.2,0.47065008]
[1772814602608,1.26576853,1975.1,1974.2,0.47065008]
[1772814602837,1.094,1975.4,1974.2,0.47065008]
[1772814603130,0.001,1975.4,1974.4,0.46955008]
[1772814603507,0.001,1975.4,1974.6,0.46955008]
[1772814604343,0.45943346,1975.4,1974.6,0.46955008]
[1772814604504,0.45943346,1975.4,1974.4,0.46955008]
[1772814605009,0.45943346,1975.4,1974.2,1.73696746]
[1772814605434,0.45843346,1975.2,1974.2,0.47065008]
[1772814605658,0.45843346,1975.0,1974.2,0.0011]
[1772814605836,1.093,1975.1,1974.0,0.0011]
[1772814605837,0.45843346,1974.8,1974.0,0.0011]
[1772814606047,0.45843346,1974.8,1974.0,1.26755027]
[1772814606853,1.093,1975.1,1974.1,0.46955008]
[1772814607148,1.55143346,1975.1,1974.1,0.46955008]
[1772814607353,0.45843346,1975.0,1974.1,0.46955008]
[1772814607730,1.26588688,1974.9,1974.2,1.26633573]
[1772814607930,1.26588688,1974.9,1974.1,0.46955008]
[1772814607931,1.72432034,1974.9,1974.1,0.46955008]
[1772814608129,1.72432034,1974.9,1974.1,1.73593399]
[1772814609528,1.72432034,1974.9,1974.1,1.73591742]
[1772814609725,1.26587325,1975.0,1974.2,0.46955008]
[1772814609949,1.26587325,1975.0,1974.3,1.26627158]
[1772814610143,1.72430671,1975.0,1974.3,1.26627158]
[1772814610349,6.15624039,1975.1,1974.4,0.46955008]
[1772814610350,1.093,1975.1,1974.4,0.46955008]
[1772814611050,2.35876795,1975.1,1974.4,0.46955008]
[1772814611752,0.001,1974.8,1974.4,0.46955008]
[1772814611955,0.001,1974.8,1974.2,1.73697278]
[1772814612130,0.001,1974.8,1974.3,0.46955008]
[1772814612736,0.001,1974.8,1974.2,1.2674227]
[1772814612955,0.001,1974.8,1974.3,0.46955008]
[1772814614035,0.001,1974.8,1974.4,1.26620745]
[1772814614226,0.001,1974.8,1974.4,1.73575753]
[1772814614632,0.001,1974.8,1974.4,0.46955008]
[1772814615047,0.001,1974.8,1974.2,0.0011]
[1772814615236,0.001,1974.8,1974.2,1.26738387]
[1772814615438,0.45943346,1974.8,1974.2,1.26738387]
[1772814615640,0.001,1974.8,1974.3,0.46955008]
[1772814616037,0.001,1974.8,1974.4,1.26620745]
[1772814616360,0.001,1974.8,1974.4,1.73575753]
[1772814616751,0.001,1974.8,1974.3,1.26622152]
[1772814617059,0.001,1974.8,1974.3,1.7357716]
[1772814617261,1.26563053,1975.3,1974.4,0.46955008]
[1772814617452,1.26658127,1975.4,1974.4,0.46955008]
[1772814617854,1.2665681,1975.4,1974.4,0.46955008]
[1772814618067,0.001,1975.4,1974.4,0.46955008]
[1772814618269,0.001,1975.4,1974.6,0.46955008]
[1772814618441,0.001,1975.4,1974.7,0.46955008]
[1772814619669,0.45943346,1975.4,1974.5,1.26614332]
[1772814619965,0.45943346,1975.4,1974.6,0.46955008]
[1772814620335,0.45843346,1975.2,1974.4,0.46955008]
[1772814621391,1.26563053,1975.3,1974.4,0.46955008]
[1772814621680,1.72504109,1975.4,1974.4,0.46955008]
[1772814621854,0.001,1975.4,1974.4,0.46955008]
[1772814622056,0.001,1975.4,1974.6,0.46955008]
[1772814622264,0.45843346,1975.7,1974.8,0.46955008]
[1772814622464,1.26531025,1975.8,1974.8,0.46955008]
[1772814623574,1.72374371,1975.8,1974.8,0.46955008]
[1772814623746,3.91205146,1975.9,1974.8,0.46955008]
[1772814624175,0.001,1975.1,1974.8,0.46955008]
[1772814624364,1.26525413,1975.9,1975.0,0.46955008]
[1772814624770,0.45843346,1976.0,1975.0,0.46955008]
[1772814624962,1.72365591,1976.0,1975.0,0.46955008]
[1772814625545,0.45843346,1975.9,1975.0,0.46955008]
[1772814626492,0.45843346,1975.7,1974.9,5.06341355]
[1772814626785,0.45843346,1975.7,1975.0,0.46955008]
[1772814626970,4.24486725,1975.9,1975.0,0.46955008]
[1772814627173,0.45843346,1975.8,1975.0,0.46955008]
[1772814627973,0.45843346,1975.8,1974.9,1.26588688]
[1772814628764,0.45843346,1975.6,1974.8,0.46955008]
[1772814629095,0.45843346,1975.6,1974.6,0.46955008]
[1772814629691,0.45843346,1975.5,1974.6,0.46955008]
[1772814630054,0.45843346,1975.5,1974.4,1.73681344]
[1772814630483,0.45843346,1975.5,1974.4,1.73685563]
[1772814630854,0.45843346,1975.3,1974.4,1.73685563]
[1772814631090,0.45843346,1975.3,1974.4,1.26730555]
[1772814631389,0.45843346,1975.3,1974.5,0.46955008]
[1772814632886,1.26569461,1975.2,1974.4,0.0011]
[1772814633071,0.48932204,1975.1,1974.4,0.0011]
[1772814633954,0.48932204,1974.9,1974.4,0.0011]
[1772814634383,1.09,1975.0,1974.4,0.47132583]
[1772814635081,2.35583253,1975.0,1974.5,1.73636915]
[1772814635387,2.35582284,1975.0,1974.5,1.73636915]
[1772814635789,1.26572366,1975.2,1974.5,1.73636915]
[1772814636089,1.75499287,1975.3,1974.6,0.47022583]
[1772814636399,1.26567083,1975.3,1974.6,0.47132583]
[1772814636565,1.26567083,1975.3,1974.6,0.0011]
[1772814636566,0.49032204,1975.2,1974.6,0.0011]
[1772814636898,0.001,1975.2,1974.6,0.47132583]
[1772814637186,0.001,1975.2,1974.7,1.26601509]
[1772814637794,0.49032204,1975.2,1974.6,0.0011]
[1772814638096,0.49032204,1975.2,1974.4,0.0011]
[1772814639061,0.48932204,1975.0,1974.4,0.0011]
[1772814639422,0.48932204,1974.8,1974.4,0.0011]
[1772814639873,0.48932204,1974.7,1974.2,0.0011]
[1772814640073,0.48932204,1974.7,1973.7,0.0011]
[1772814641191,0.48932204,1974.5,1973.7,0.0011]
[1772814641593,0.48932204,1974.4,1973.7,0.0011]
[1772814641891,0.48932204,1974.2,1973.7,0.0011]
[1772814642280,1.089,1974.3,1973.7,0.0011]
[1772814642663,1.089,1974.3,1973.7,0.47132583]
[1772814642985,1.089,1974.3,1973.7,0.0011]
[1772814643212,1.26633573,1974.2,1973.7,0.0011]
[1772814643571,1.75565777,1974.2,1973.7,0.0011]
[1772814643772,0.48932204,1974.1,1973.5,0.0011]
[1772814645413,1.26646403,1974.0,1973.5,0.0011]
[1772814645609,2.35546403,1974.0,1973.5,0.0011]
[1772814647004,2.35641377,1974.1,1973.5,0.47132583]
[1772814647308,1.09,1974.1,1973.5,0.47132583]
[1772814647498,1.26646403,1974.0,1973.5,0.0011]
[1772814648511,0.48932204,1973.9,1973.5,0.0011]
[1772814648683,0.48932204,1973.7,1972.9,0.0011]
[1772814648885,1.57932204,1973.6,1972.9,0.0011]
[1772814649598,1.75610693,1973.5,1972.9,0.0011]
[1772814649915,1.75610693,1973.5,1973.3,0.0011]
[1772814650114,1.75610693,1973.5,1972.9,0.0011]
[1772814651316,0.48932204,1973.4,1972.9,0.0011]
[1772814651817,1.26691329,1973.3,1972.9,0.0011]
[1772814651980,1.26691329,1973.3,1972.6,0.0011]
[1772814651981,0.48932204,1973.2,1972.6,0.0011]
[1772814652183,0.48932204,1973.2,1972.5,0.0011]
[1772814652184,1.091,1973.1,1972.5,0.0011]
[1772814652483,1.58032204,1973.1,1972.5,0.0011]
[1772814652881,0.48932204,1973.0,1972.5,0.0011]
[1772814653075,0.48932204,1972.9,1972.3,0.0011]
[1772814653593,1.26723438,1972.8,1972.3,0.0011]
[1772814655119,1.26704171,1973.1,1972.3,0.46572371]
[1772814655284,1.092,1973.0,1972.3,0.46572371]
[1772814655913,1.26717015,1972.9,1972.3,1.73322661]
[1772814656304,1.26717015,1972.9,1972.3,1.26865007]
[1772814656798,1.092,1973.0,1972.4,0.46462371]
[1772814657028,1.75916686,1973.5,1972.4,0.46462371]
[1772814657334,1.092,1973.4,1972.4,0.46462371]
[1772814657802,1.58435528,1973.4,1972.4,0.46462371]
[1772814658010,1.26691329,1973.3,1972.5,1.26742712]
[1772814658183,1.26691329,1973.3,1972.6,0.46462371]
[1772814659413,2.35889746,1973.4,1972.6,0.46462371]
[1772814659983,2.35889746,1973.4,1972.7,1.26729862]
[1772814660387,1.093,1973.5,1972.8,0.46462371]
[1772814661512,1.093,1973.5,1972.4,1.26745841]
[1772814661513,0.49235528,1973.4,1972.4,1.26745841]
[1772814661731,0.49235528,1973.4,1972.3,1.73839414]
[1772814662213,0.45756271,1973.2,1972.3,1.73839414]
[1772814662400,1.26691329,1973.3,1972.4,0.46977792]
[1772814662804,1.26691329,1973.3,1972.7,0.0011]
[1772814663503,1.26687489,1973.4,1972.7,0.47087792]
[1772814663714,2.35985252,1973.4,1972.7,0.47087792]
[1772814664293,1.094,1973.7,1972.9,0.46977792]
[1772814665892,1.26652819,1973.9,1972.9,0.46977792]
[1772814666093,1.094,1973.8,1972.9,0.46977792]
[1772814666311,1.26665653,1973.7,1973.0,1.73688385]
[1772814668617,1.26665653,1973.7,1973.0,1.73685848]
[1772814669586,1.26665653,1973.7,1973.1,0.46977792]
[1772814670221,2.36062742,1973.8,1973.1,0.46977792]
[1772814670410,2.36062742,1973.8,1973.2,1.26697749]
[1772814671197,1.26662742,1973.8,1973.2,1.26697749]
[1772814671403,2.36062742,1973.8,1973.2,1.73675541]
[1772814671827,0.46977791,1973.2,1972.8,0.46977792]
[1772814672024,2.36062742,1973.8,1972.9,0.46977792]
[1772814672726,1.26747169,1974.0,1973.1,0.46977792]
[1772814672911,1.7250344,1974.0,1973.1,0.46977792]
[1772814673422,1.26747169,1974.0,1973.1,0.46977792]
[1772814674727,1.26747169,1974.0,1973.2,0.46977792]
[1772814674927,3.08486703,1973.9,1972.9,1.73694311]
[1772814675130,0.45756271,1973.8,1972.9,1.73694311]
[1772814676323,0.45756271,1973.8,1972.9,1.73693378]
[1772814676525,0.001,1973.9,1973.0,0.46977792]
[1772814676704,1.26659235,1973.8,1973.1,1.26704171]
[1772814676910,1.26659235,1973.8,1973.1,1.73681963]
[1772814677631,0.45756271,1973.7,1972.8,0.46977792]
[1772814677800,0.45756271,1973.6,1972.7,1.26836946]
[1772814677996,0.45756271,1973.6,1972.7,1.73814738]
[1772814678228,2.62730432,1973.7,1972.8,0.46977792]
[1772814678431,1.095,1973.6,1972.8,0.46977792]
[1772814678801,0.001,1973.9,1973.1,0.46977792]
[1772814678997,1.26752914,1973.9,1973.1,0.46977792]
[1772814679731,0.001,1973.9,1973.1,0.46977792]
[1772814679933,1.26753868,1973.9,1973.1,0.46977792]
[1772814680240,0.001,1973.9,1973.1,0.46977792]
[1772814680556,1.09,1974.3,1973.0,0.46977792]
[1772814680791,2.35627324,1974.3,1973.1,1.26704171]
[1772814681033,2.35627324,1974.3,1973.2,0.46977792]
[1772814681034,1.09,1974.3,1973.2,0.46977792]
[1772814681234,2.35627687,1974.3,1973.2,0.46977792]
[1772814681929,2.81383958,1974.3,1973.2,0.46977792]
[1772814682117,0.45756271,1974.2,1973.2,0.46977792]
[1772814682606,2.35627687,1974.3,1973.2,0.46977792]
[1772814682809,2.81383958,1974.3,1973.4,0.46977792]
[1772814683403,1.54756271,1974.3,1973.4,0.46977792]
[1772814683616,2.35627913,1974.3,1973.4,0.46977792]
[1772814685229,1.09,1974.3,1973.6,0.46977792]
[1772814685430,1.092,1974.8,1973.7,0.46977792]
[1772814685938,1.54956271,1974.8,1973.7,0.46977792]
[1772814686252,1.092,1974.8,1973.7,0.46977792]
[1772814687239,2.35799785,1974.8,1973.8,1.26659235]
[1772814687535,0.001,1974.2,1973.9,0.46977792]
[1772814689136,2.35799785,1974.8,1973.9,0.46977792]
[1772814689331,2.35799785,1974.8,1974.0,1.26646403]
[1772814689738,2.35799785,1974.8,1974.0,1.73624195]
[1772814690236,1.72350676,1974.9,1974.0,1.73624195]
[1772814690440,2.45041855,1975.4,1974.1,0.46977792]
[1772814690441,1.7233214,1975.1,1974.1,0.46977792]
[1772814690614,0.45756271,1975.0,1974.1,0.46977792]
[1772814691536,1.72344959,1974.9,1974.1,1.73612491]
[1772814691742,0.47292507,1974.8,1974.1,1.26634699]
[1772814693740,0.001,1975.2,1974.2,0.49802516]
[1772814693949,1.26673623,1975.2,1974.2,0.49802516]
[1772814694317,0.001,1975.2,1974.2,0.49802516]
[1772814695267,2.52115317,1975.9,1974.6,0.49802516]
[1772814695426,1.26514588,1976.1,1974.8,0.49802516]
[1772814695626,1.26509942,1976.2,1974.8,0.49802516]
[1772814695836,1.26509942,1976.2,1975.0,0.49802516]
[1772814696940,1.73802449,1976.2,1975.0,0.49802516]
[1772814697450,0.47292507,1976.1,1975.0,0.49802516]
[1772814697761,1.73810725,1976.0,1975.1,1.26575869]
[1772814697952,0.47292507,1975.9,1975.1,1.26575869]
[1772814698357,0.47292507,1975.9,1975.1,1.76378385]
[1772814698546,1.26518218,1976.0,1975.1,1.76378385]
[1772814698547,1.26518218,1976.0,1975.2,0.49802516]
[1772814699362,2.35313356,1976.1,1975.2,0.49802516]
[1772814699873,1.26498278,1976.4,1975.4,0.49802516]
[1772814700167,0.47292507,1976.6,1975.4,0.49802516]
[1772814701663,0.47292507,1976.6,1975.3,1.26563053]
[1772814701868,0.47292507,1976.4,1975.2,5.06252214]
[1772814702366,0.47292507,1976.4,1975.1,1.76375762]
[1772814702966,0.47292507,1976.4,1975.2,0.49802516]
[1772814703137,1.56092507,1976.4,1975.2,0.49802516]
[1772814703338,0.47292507,1976.3,1975.2,0.49802516]
[1772814703540,1.088,1976.4,1975.2,0.49802516]
[1772814703741,1.56092507,1976.4,1975.2,0.49802516]
[1772814703941,0.47292507,1976.2,1975.3,1.76365569]
[1772814704372,0.47292507,1976.2,1975.3,0.49802516]
[1772814704773,0.47292507,1976.2,1975.2,1.26565893]
[1772814705269,0.47292507,1976.2,1975.1,1.26575869]
[1772814705844,0.47292507,1975.7,1974.7,1.76401351]
[1772814706042,0.47292507,1975.6,1974.7,1.76401351]
[1772814706274,0.47292507,1975.6,1974.5,5.06433062]
[1772814706473,0.47292507,1975.6,1974.4,1.76418472]
[1772814707272,0.47292507,1975.6,1974.4,1.26615956]
[1772814707463,0.47292507,1975.6,1974.3,6.20648569]
[1772814707645,0.47292507,1975.6,1974.3,2.40787774]
[1772814708370,0.47292507,1975.4,1974.3,2.40787774]
[1772814708753,0.47292507,1975.4,1974.4,0.49802516]
[1772814710279,1.26547573,1975.6,1974.4,0.49802516]
[1772814710476,1.26547573,1975.6,1974.6,0.49802516]
[1772814710979,0.47292507,1975.7,1974.6,0.49802516]
[1772814711149,2.56446369,1975.8,1974.6,0.49802516]
[1772814711150,0.47292507,1975.8,1974.7,0.49802516]
[1772814711594,0.47292507,1975.7,1974.7,0.49802516]
[1772814712581,0.47292507,1975.7,1974.9,0.49802516]
[1772814712880,0.001,1976.0,1974.9,0.49802516]
[1772814712881,1.26621722,1976.0,1974.9,0.49802516]
[1772814713078,0.47292507,1975.9,1974.9,0.49802516]
[1772814713791,1.73914229,1976.0,1974.9,0.49802516]
[1772814713964,0.47292507,1975.9,1974.9,0.49802516]
[1772814714166,0.47292507,1975.8,1974.9,0.49802516]
[1772814714364,0.47292507,1975.8,1974.7,1.26599173]
[1772814714567,1.26537429,1975.7,1974.8,0.49802516]
[1772814715489,1.73827654,1975.8,1974.8,0.49802516]
[1772814715694,1.73824311,1975.8,1974.8,0.49802516]
[1772814716196,0.47336122,1975.7,1974.8,0.49802516]
[1772814716898,0.47336122,1975.5,1974.5,5.5240533]
[1772814717365,0.47336122,1975.5,1974.5,0.0011]
[1772814718864,0.47336122,1975.3,1974.5,0.0011]
[1772814719202,1.26556646,1975.4,1974.5,0.0011]
[1772814719203,0.47336122,1975.1,1974.5,0.0011]
[1772814721306,1.26582278,1975.0,1974.5,0.0011]
[1772814721475,0.47336122,1974.9,1974.4,0.0011]
[1772814721887,0.47336122,1974.9,1974.2,0.0011]
[1772814722386,0.47336122,1974.9,1974.2,1.26742101]
[1772814722579,1.26582278,1975.0,1974.2,1.76474898]